fUSD/lending_fUSD_20250110
["ID","MTS","AMOUNT","RATE_DAILY","PERIOD"]
[348406516,1736517039112,-500.0,9.799e-05,2]
[348406517,1736517039121,-861.36969601,9.799e-05,2]
[348406518,1736517039133,-471.90030399,9.799e-05,2]
[348406519,1736517039142,-500.0,9.799e-05,2]
[348406520,1736517039151,-708.14,9.799e-05,2]
[348406521,1736517039161,-1390.48,9.799e-05,2]
[348406522,1736517039170,-500.0,9.799e-05,2]
[348406523,1736517039179,-700.8,9.799e-05,2]
[348406524,1736517039188,-500.0,9.799e-05,2]
[348406525,1736517039215,-769.11,9.799e-05,2]
[348406527,1736517039224,-788.01,9.799e-05,2]
[348406529,1736517039233,-500.0,9.799e-05,2]
[348406530,1736517039242,-1883.8,9.799e-05,2]
[348406532,1736517039251,-500.0,9.799e-05,2]
[348406534,1736517039261,-712.32,9.799e-05,2]
[348406536,1736517039269,-500.0,9.799e-05,2]
[348406538,1736517039278,-500.0,9.799e-05,2]
[348406539,1736517039287,-578.86,9.799e-05,2]
[348406541,1736517039296,-500.0,9.799e-05,2]
[348406543,1736517039306,-500.0,9.799e-05,2]
[348406545,1736517039315,-859.77,9.799e-05,2]
[348406547,1736517039324,-808.12,9.799e-05,2]
[348406549,1736517039333,-1940.38,9.799e-05,2]
[348406550,1736517039342,-250.53422674,9.799e-05,2]
[348406552,1736517039352,-500.0,9.799e-05,2]
[348406554,1736517039361,-757.9,9.799e-05,2]
[348406556,1736517039370,-1957.97,9.799e-05,2]
[348406558,1736517039380,-511.46,9.799e-05,2]
[348406560,1736517039389,-500.0,9.799e-05,2]
[348406562,1736517039399,-7251.63,9.799e-05,2]
[348406564,1736517039408,-500.0,9.799e-05,2]
[348406565,1736517039417,-500.0,9.799e-05,2]
[348406567,1736517039426,-500.0,9.799e-05,2]
[348406569,1736517039435,-500.0,9.799e-05,2]
[348406571,1736517039444,-500.0,9.799e-05,2]
[348406573,1736517039453,-918.26,9.799e-05,2]
[348406575,1736517039463,-500.0,9.799e-05,2]
[348406576,1736517039471,-500.0,9.799e-05,2]
[348406578,1736517039482,-500.0,9.799e-05,2]
[348406580,1736517039492,-500.0,9.799e-05,2]
[348406582,1736517039501,-899.09,9.799e-05,2]
[348406584,1736517039510,-500.0,9.799e-05,2]
[348406586,1736517039519,-615.38,9.799e-05,2]
[348406587,1736517039528,-880.52,9.799e-05,2]
[348406589,1736517039537,-500.0,9.799e-05,2]
[348406591,1736517039547,-500.0,9.799e-05,2]
[348406593,1736517039556,-807.97,9.799e-05,2]
[348406595,1736517039565,-732.31,9.799e-05,2]
[348406597,1736517039574,-500.0,9.799e-05,2]
[348406598,1736517039583,-500.0,9.799e-05,2]
[348406600,1736517039593,-500.0,9.799e-05,2]
[348406602,1736517039603,-501.24690409,9.799e-05,2]
[348406604,1736517039612,-500.0,9.799e-05,2]
[348406606,1736517039620,-973.71,9.799e-05,2]
[348406608,1736517039630,-500.0,9.799e-05,2]
[348406610,1736517039640,-500.0,9.799e-05,2]
[348406612,1736517039650,-893.88,9.799e-05,2]
[348406614,1736517039659,-1194.27,9.799e-05,2]
[348406616,1736517039668,-1364.4,9.799e-05,2]
[348406617,1736517039679,-500.0,9.799e-05,2]
[348406618,1736517039688,-1137.07,9.799e-05,2]
[348406619,1736517039699,-815.33,9.799e-05,2]
[348406620,1736517039708,-500.0,9.799e-05,2]
[348406621,1736517039718,-500.0,9.799e-05,2]
[348406622,1736517039727,-510.8,9.799e-05,2]
[348406623,1736517039735,-500.0,9.799e-05,2]
[348406624,1736517039745,-500.0,9.799e-05,2]
[348406625,1736517039754,-567.07,9.799e-05,2]
[348406626,1736517039763,-564.06,9.799e-05,2]
[348406627,1736517039772,-758.29,9.799e-05,2]
[348406628,1736517039781,-1158.01,9.799e-05,2]
[348406629,1736517039790,-2247.87,9.799e-05,2]
[348406631,1736517039802,-500.0,9.799e-05,2]
[348406633,1736517039811,-500.0,9.799e-05,2]
[348406635,1736517039819,-500.0,9.799e-05,2]
[348406637,1736517039828,-590.23,9.799e-05,2]
[348406639,1736517039838,-500.0,9.799e-05,2]
[348406641,1736517039847,-2040.43,9.799e-05,2]
[348406643,1736517039856,-3628.0,9.799e-05,2]
[348406645,1736517039866,-500.0,9.799e-05,2]
[348406647,1736517039875,-500.0,9.799e-05,2]
[348406649,1736517039885,-503.73088612,9.799e-05,2]
[348406651,1736517039894,-500.0,9.799e-05,2]
[348406653,1736517039904,-1813.06,9.799e-05,2]
[348406655,1736517039913,-500.0,9.799e-05,2]
[348406657,1736517039922,-500.0,9.799e-05,2]
[348406659,1736517039931,-500.0,9.799e-05,2]
[348406661,1736517039941,-1040.49,9.799e-05,2]
[348406663,1736517039950,-548.14,9.799e-05,2]
[348406665,1736517039959,-500.0,9.799e-05,2]
[348406666,1736517039968,-2244.98,9.799e-05,2]
[348406668,1736517039978,-572.42031,9.799e-05,2]
[348406670,1736517039987,-3610.71,9.799e-05,2]
[348406673,1736517039997,-500.0,9.799e-05,2]
[348406674,1736517040006,-2364.93,9.799e-05,2]
[348406676,1736517040016,-500.0,9.799e-05,2]
[348406679,1736517040025,-725.48,9.799e-05,2]
[348406680,1736517040035,-3264.99,9.799e-05,2]
[348406682,1736517040045,-500.0,9.799e-05,2]
[348406685,1736517040054,-1367.09,9.799e-05,2]
[348406687,1736517040065,-935.55,9.799e-05,2]
[348406689,1736517040075,-500.0,9.799e-05,2]
[348406692,1736517040085,-500.0,9.799e-05,2]
[348406694,1736517040094,-486.32897422,9.799e-05,2]
[348406696,1736517040104,-500.0,9.799e-05,2]
[348406699,1736517040113,-812.38,9.799e-05,2]
[348406702,1736517040122,-500.0,9.799e-05,2]
[348406705,1736517040132,-500.0,9.799e-05,2]
[348406708,1736517040142,-852.25,9.799e-05,2]
[348406711,1736517040151,-1426.67,9.799e-05,2]
[348406715,1736517040160,-875.83,9.799e-05,2]
[348406717,1736517040169,-906.55,9.799e-05,2]
[348406720,1736517040179,-500.0,9.799e-05,2]
[348406723,1736517040188,-270.62880808,9.799e-05,2]
[348406726,1736517040197,-500.0,9.799e-05,2]
[348406729,1736517040207,-500.0,9.799e-05,2]
[348406732,1736517040216,-733.79,9.799e-05,2]
[348406735,1736517040225,-500.0,9.799e-05,2]
[348406738,1736517040234,-2969.98,9.799e-05,2]
[348406741,1736517040244,-500.0,9.799e-05,2]
[348406744,1736517040253,-1914.38,9.799e-05,2]
[348406747,1736517040262,-500.0,9.799e-05,2]
[348406750,1736517040272,-500.0,9.799e-05,2]
[348406776,1736517040498,-500.0,9.799e-05,2]
[348406778,1736517040508,-500.0,9.799e-05,2]
[348406780,1736517040518,-500.0,9.799e-05,2]
[348406782,1736517040527,-500.0,9.799e-05,2]
[348406784,1736517040537,-840.22,9.799e-05,2]
[348406786,1736517040546,-500.0,9.799e-05,2]
[348406788,1736517040555,-500.0,9.799e-05,2]
[348406790,1736517040564,-502.83592766,9.799e-05,2]
[348406792,1736517040573,-500.0,9.799e-05,2]
[348406794,1736517040582,-500.0,9.799e-05,2]
[348406796,1736517040591,-710.76,9.799e-05,2]
[348406797,1736517040599,-500.0,9.799e-05,2]
[348406799,1736517040608,-500.0,9.799e-05,2]
[348406801,1736517040617,-603.93,9.799e-05,2]
[348406803,1736517040626,-500.0,9.799e-05,2]
[348406805,1736517040635,-3470.81,9.799e-05,2]
[348406807,1736517040645,-500.0,9.799e-05,2]
[348406809,1736517040654,-1711.53,9.799e-05,2]
[348406811,1736517040663,-575.16006284,9.799e-05,2]
[348406813,1736517040673,-775.57,9.799e-05,2]
[348406815,1736517040687,-500.0,9.799e-05,2]
[348406817,1736517040698,-500.0,9.799e-05,2]
[348406820,1736517040707,-500.0,9.799e-05,2]
[348406821,1736517040719,-543.49541861,9.799e-05,2]
[348406824,1736517040729,-725.82,9.799e-05,2]
[348406825,1736517040738,-500.0,9.799e-05,2]
[348406827,1736517040748,-500.0,9.799e-05,2]
[348406830,1736517040762,-500.0,9.799e-05,2]
[348406832,1736517040771,-500.0,9.799e-05,2]
[348406834,1736517040783,-706.62,9.799e-05,2]
[348406836,1736517040793,-266.23399173,9.799e-05,2]
[348406837,1736517040809,-501672.5765416,9.8e-05,2]
[348406839,1736517040826,-1451.76,9.836e-05,2]
[348406841,1736517040836,-150.0,9.836e-05,2]
[348406843,1736517040846,-150.0,9.836e-05,2]
[348406846,1736517040855,-437.08,9.836e-05,2]
[348406848,1736517040874,-1257.8425,9.896e-05,2]
[348406849,1736517040888,-500.0,9.897e-05,2]
[348406852,1736517040898,-193.0,9.899e-05,2]
[348406853,1736517040907,-1173.0,9.973e-05,2]
[348406856,1736517040917,-2238.0,9.973e-05,2]
[348406857,1736517040927,-151.84848272,9.973e-05,2]
[348406859,1736517040936,-500.59236816,9.973e-05,2]
[348406861,1736517040946,-150.84691236,9.973e-05,2]
[348406864,1736517040955,-156.84143447,9.973e-05,2]
[348406865,1736517040964,-151.84589978,9.973e-05,2]
[348406867,1736517040973,-251.45,9.98e-05,2]
[348406869,1736517040982,-150.0,9.98e-05,2]
[348406871,1736517040992,-150.0,9.98e-05,2]
[348406873,1736517041001,-150.0,9.98e-05,2]
[348406875,1736517041010,-3000.0,9.99e-05,12]
[348406877,1736517041020,-640.4742012,9.992e-05,2]
[348406880,1736517041029,-1643.3960214,9.992e-05,2]
[348406882,1736517041039,-558.6892088,9.992e-05,2]
[348406883,1736517041048,-278.8032068,9.992e-05,2]
[348406885,1736517041057,-177.6291298,9.992e-05,2]
[348406888,1736517041067,-166.649,9.995e-05,2]
[348406889,1736517041076,-47364.20567355,9.995e-05,2]
[348406891,1736517041085,-280.2460035,9.996e-05,2]
[348406893,1736517041095,-500.0,9.996e-05,2]
[348406895,1736517041104,-500.0,9.996e-05,2]
[348406897,1736517041114,-503.03803374,9.996e-05,2]
[348406899,1736517041123,-500.0,9.996e-05,2]
[348406902,1736517041133,-502.64085407,9.996e-05,2]
[348406904,1736517041143,-500.0,9.996e-05,2]
[348406905,1736517041152,-500.0,9.996e-05,2]
[348406907,1736517041161,-500.0,9.996e-05,2]
[348406909,1736517041170,-500.0,9.996e-05,2]
[348406912,1736517041180,-500.0,9.996e-05,2]
[348406913,1736517041189,-500.0,9.996e-05,2]
[348406915,1736517041198,-675.79,9.996e-05,2]
[348406917,1736517041207,-500.0,9.996e-05,2]
[348406919,1736517041216,-524.34332142,9.996e-05,2]
[348406921,1736517041225,-500.0,9.996e-05,2]
[348406923,1736517041234,-500.0,9.996e-05,2]
[348406925,1736517041244,-500.0,9.996e-05,2]
[348406927,1736517041253,-500.0,9.996e-05,2]
[348406929,1736517041263,-500.0,9.996e-05,2]
[348406931,1736517041272,-500.0,9.996e-05,2]
[348406933,1736517041281,-500.0,9.996e-05,2]
[348406935,1736517041291,-500.0,9.996e-05,2]
[348406937,1736517041300,-500.0,9.996e-05,2]
[348406939,1736517041309,-500.0,9.996e-05,2]
[348406941,1736517041319,-500.0,9.996e-05,2]
[348406944,1736517041328,-501.87636153,9.996e-05,2]
[348406946,1736517041338,-500.0,9.996e-05,2]
[348406948,1736517041348,-500.0,9.996e-05,2]
[348406950,1736517041358,-500.0,9.996e-05,2]
[348406952,1736517041385,-500.0,9.996e-05,2]
[348406954,1736517041394,-500.0,9.996e-05,2]
[348406956,1736517041403,-500.0,9.996e-05,2]
[348406958,1736517041413,-500.0,9.996e-05,2]
[348406959,1736517041422,-500.0,9.996e-05,2]
[348406962,1736517041432,-500.0,9.996e-05,2]
[348406963,1736517041441,-500.0,9.996e-05,2]
[348406965,1736517041451,-500.0,9.996e-05,2]
[348406968,1736517041460,-500.0,9.996e-05,2]
[348406970,1736517041469,-500.0,9.996e-05,2]
[348406971,1736517041479,-500.0,9.996e-05,2]
[348406974,1736517041490,-500.0,9.996e-05,2]
[348406976,1736517041500,-500.0,9.996e-05,2]
[348406978,1736517041509,-500.0,9.996e-05,2]
[348406980,1736517041519,-500.0,9.996e-05,2]
[348406981,1736517041528,-500.0,9.996e-05,2]
[348406984,1736517041537,-507.01333084,9.996e-05,2]
[348406985,1736517041546,-500.0,9.996e-05,2]
[348406988,1736517041556,-500.0,9.996e-05,2]
[348406990,1736517041565,-500.0,9.996e-05,2]
[348406992,1736517041574,-500.0,9.996e-05,2]
[348406994,1736517041584,-500.0,9.996e-05,2]
[348406995,1736517041593,-500.0,9.996e-05,2]
[348406997,1736517041602,-500.0,9.996e-05,2]
[348406999,1736517041611,-500.0,9.996e-05,2]
[348407001,1736517041621,-500.0,9.996e-05,2]
[348407003,1736517041630,-500.0,9.996e-05,2]
[348407005,1736517041640,-500.0,9.996e-05,2]
[348407007,1736517041649,-500.0,9.996e-05,2]
[348407010,1736517041659,-508.49426775,9.996e-05,2]
[348407011,1736517041669,-500.0,9.996e-05,2]
[348407014,1736517041683,-500.0,9.996e-05,2]
[348407015,1736517041692,-500.0,9.996e-05,2]
[348407017,1736517041701,-500.0,9.996e-05,2]
[348407019,1736517041713,-500.0,9.996e-05,2]
[348407021,1736517041722,-500.0,9.996e-05,2]
[348407023,1736517041732,-500.0,9.996e-05,2]
[348407025,1736517041741,-535.4671915,9.996e-05,2]
[348407027,1736517041751,-522.1907082,9.996e-05,2]
[348407029,1736517041763,-500.0,9.996e-05,2]
[348407031,1736517041773,-339.57795585,9.996e-05,2]
[348407033,1736517041782,-500.0,9.996e-05,2]
[348407036,1736517041791,-500.0,9.996e-05,2]
[348407037,1736517041801,-1296.36,9.996e-05,2]
[348407039,1736517041810,-500.0,9.996e-05,2]
[348407041,1736517041819,-500.0,9.996e-05,2]
[348407043,1736517041829,-500.0,9.996e-05,2]
[348407046,1736517041839,-576.55,9.996e-05,2]
[348407048,1736517041848,-500.0,9.996e-05,2]
[348407049,1736517041857,-500.0,9.996e-05,2]
[348407051,1736517041881,-500.0,9.996e-05,2]
[348407053,1736517041890,-709.05,9.996e-05,2]
[348407055,1736517041899,-500.0,9.996e-05,2]
[348407057,1736517041909,-500.0,9.996e-05,2]
[348407059,1736517041918,-500.0,9.996e-05,2]
[348407061,1736517041927,-500.0,9.996e-05,2]
[348407064,1736517041936,-500.0,9.996e-05,2]
[348407066,1736517041946,-501.9587472,9.996e-05,2]
[348407067,1736517041955,-500.0,9.996e-05,2]
[348407070,1736517041964,-500.0,9.996e-05,2]
[348407072,1736517041973,-500.0,9.996e-05,2]
[348407074,1736517041982,-500.0,9.996e-05,2]
[348407075,1736517041991,-500.0,9.996e-05,2]
[348407078,1736517042001,-500.0,9.996e-05,2]
[348407080,1736517042010,-500.0,9.996e-05,2]
[348407081,1736517042020,-500.0,9.996e-05,2]
[348407084,1736517042029,-500.0,9.996e-05,2]
[348407085,1736517042039,-500.0,9.996e-05,2]
[348407088,1736517042048,-500.0,9.996e-05,2]
[348407089,1736517042058,-501.04170425,9.996e-05,2]
[348407090,1736517042067,-500.0,9.996e-05,2]
[348407091,1736517042076,-500.0,9.996e-05,2]
[348407092,1736517042086,-500.0,9.996e-05,2]
[348407093,1736517042095,-500.0,9.996e-05,2]
[348407094,1736517042104,-500.0,9.996e-05,2]
[348407095,1736517042114,-500.0,9.996e-05,2]
[348407096,1736517042124,-500.0,9.996e-05,2]
[348407098,1736517042134,-500.0,9.996e-05,2]
[348407100,1736517042143,-500.0,9.996e-05,2]
[348407101,1736517042153,-500.0,9.996e-05,2]
[348407103,1736517042162,-500.0,9.996e-05,2]
[348407105,1736517042172,-500.0,9.996e-05,2]
[348407107,1736517042181,-500.0,9.996e-05,2]
[348407109,1736517042190,-500.0,9.996e-05,2]
[348407111,1736517042200,-247.54489911,9.996e-05,2]
[348407113,1736517042209,-500.0,9.996e-05,2]
[348407115,1736517042218,-500.0,9.996e-05,2]
[348407118,1736517042228,-500.0,9.996e-05,2]
[348407119,1736517042237,-500.0,9.996e-05,2]
[348407122,1736517042247,-686.65,9.996e-05,2]
[348407123,1736517042256,-500.0,9.996e-05,2]
[348407126,1736517042265,-500.65795346,9.996e-05,2]
[348407128,1736517042274,-502.4254496,9.996e-05,2]
[348407130,1736517042284,-500.0,9.996e-05,2]
[348407131,1736517042293,-500.0,9.996e-05,2]
[348407134,1736517042303,-500.0,9.996e-05,2]
[348407136,1736517042312,-538.0,9.996e-05,2]
[348407137,1736517042321,-531.65,9.996e-05,2]
[348407139,1736517042330,-734.46,9.996e-05,2]
[348407142,1736517042340,-499.70496891,9.996e-05,2]
[348407144,1736517042349,-500.0,9.996e-05,2]
[348407146,1736517042358,-500.0,9.996e-05,2]
[348407148,1736517042384,-602.58606876,9.996e-05,2]
[348407149,1736517042393,-500.0,9.996e-05,2]
[348407152,1736517042403,-500.0,9.996e-05,2]
[348407153,1736517042412,-501.67454617,9.996e-05,2]
[348407156,1736517042422,-500.0,9.996e-05,2]
[348407157,1736517042431,-500.0,9.996e-05,2]
[348407159,1736517042440,-500.0,9.996e-05,2]
[348407161,1736517042449,-500.0,9.996e-05,2]
[348407163,1736517042459,-500.0,9.996e-05,2]
[348407166,1736517042468,-500.0,9.996e-05,2]
[348407168,1736517042477,-500.0,9.996e-05,2]
[348407169,1736517042486,-500.0,9.996e-05,2]
[348407171,1736517042495,-500.0,9.996e-05,2]
[348407173,1736517042504,-179.0482255,9.996e-05,2]
[348407175,1736517042513,-602.2,9.996e-05,2]
[348407177,1736517042522,-500.0,9.996e-05,2]
[348407179,1736517042531,-500.0,9.996e-05,2]
[348407181,1736517042541,-500.0,9.996e-05,2]
[348407183,1736517042550,-500.0,9.996e-05,2]
[348407185,1736517042559,-667.02,9.996e-05,2]
[348407187,1736517042568,-500.0,9.996e-05,2]
[348407189,1736517042577,-697.3,9.996e-05,2]
[348407191,1736517042586,-500.0,9.996e-05,2]
[348407193,1736517042595,-500.0,9.996e-05,2]
[348407195,1736517042604,-500.0,9.996e-05,2]
[348407197,1736517042613,-500.0,9.996e-05,2]
[348407199,1736517042622,-500.0,9.996e-05,2]
[348407201,1736517042631,-500.0,9.996e-05,2]
[348407203,1736517042640,-500.0,9.996e-05,2]
[348407205,1736517042650,-500.0,9.996e-05,2]
[348407207,1736517042658,-500.0,9.996e-05,2]
[348407209,1736517042668,-500.0,9.996e-05,7]
[348407211,1736517042681,-500.0,9.996e-05,2]
[348407213,1736517042690,-500.0,9.996e-05,2]
[348407215,1736517042699,-535.49,9.996e-05,2]
[348407217,1736517042709,-500.0,9.996e-05,2]
[348407219,1736517042718,-500.0,9.996e-05,2]
[348407221,1736517042728,-500.0,9.996e-05,2]
[348407223,1736517042737,-500.0,9.996e-05,2]
[348407225,1736517042747,-500.0,9.996e-05,2]
[348407227,1736517042756,-500.0,9.996e-05,2]
[348407229,1736517042765,-500.0,9.996e-05,2]
[348407231,1736517042775,-500.0,9.996e-05,2]
[348407233,1736517042785,-500.0,9.996e-05,2]
[348407235,1736517042794,-500.0,9.996e-05,2]
[348407237,1736517042803,-500.0,9.996e-05,2]
[348407239,1736517042812,-500.0,9.996e-05,2]
[348407241,1736517042821,-1468.79,9.996e-05,2]
[348407243,1736517042831,-500.0,9.996e-05,2]
[348407245,1736517042840,-500.0,9.996e-05,2]
[348407247,1736517042848,-500.0,9.996e-05,2]
[348407249,1736517042858,-233.89,9.996e-05,2]
[348407251,1736517042882,-500.0,9.996e-05,2]
[348407253,1736517042891,-579.59373616,9.996e-05,2]
[348407255,1736517042900,-564.22,9.996e-05,2]
[348407257,1736517042909,-500.0,9.996e-05,2]
[348407259,1736517042918,-500.0,9.996e-05,2]
[348407261,1736517042928,-500.0,9.996e-05,2]
[348407263,1736517042937,-500.0,9.996e-05,2]
[348407265,1736517042946,-500.0,9.996e-05,2]
[348407267,1736517042956,-2588.31,9.996e-05,2]
[348407269,1736517042965,-500.0,9.996e-05,2]
[348407271,1736517042974,-500.0,9.996e-05,2]
[348407273,1736517042983,-500.0,9.996e-05,2]
[348407275,1736517042992,-500.0,9.996e-05,2]
[348407276,1736517043001,-555.83,9.996e-05,2]
[348407279,1736517043011,-504.51345645,9.996e-05,2]
[348407280,1736517043020,-562.36,9.996e-05,2]
[348407282,1736517043029,-500.0,9.996e-05,2]
[348407284,1736517043038,-500.0,9.996e-05,2]
[348407286,1736517043048,-500.0,9.996e-05,2]
[348407288,1736517043057,-601.86,9.996e-05,2]
[348407290,1736517043066,-500.0,9.996e-05,2]
[348407293,1736517043075,-167.23,9.996e-05,2]
[348407296,1736517043084,-500.0,9.996e-05,2]
[348407298,1736517043094,-500.0,9.996e-05,2]
[348407299,1736517043103,-500.0,9.996e-05,2]
[348407302,1736517043113,-500.0,9.996e-05,2]
[348407305,1736517043122,-500.0,9.996e-05,2]
[348407308,1736517043132,-500.0,9.996e-05,2]
[348407310,1736517043141,-571.61249942,9.996e-05,2]
[348407311,1736517043150,-530.26,9.996e-05,2]
[348407313,1736517043159,-500.0,9.996e-05,2]
[348407315,1736517043168,-500.0,9.996e-05,2]
[348407317,1736517043177,-500.0,9.996e-05,2]
[348407319,1736517043186,-500.0,9.996e-05,2]
[348407321,1736517043195,-394.44393736,9.996e-05,2]
[348407323,1736517043204,-500.0,9.996e-05,2]
[348407327,1736517043214,-500.0,9.996e-05,2]
[348407331,1736517043224,-500.0,9.996e-05,2]
[348407337,1736517043233,-500.0,9.996e-05,2]
[348407340,1736517043242,-500.0,9.996e-05,2]
[348407342,1736517043251,-811.97,9.996e-05,2]
[348407345,1736517043264,-623.99,9.996e-05,2]
[348407347,1736517043283,-770.64,9.996e-05,2]
[348407350,1736517043303,-748.63,9.996e-05,2]
[348407352,1736517043313,-500.0,9.996e-05,2]
[348407355,1736517043324,-500.0,9.996e-05,2]
[348407358,1736517043333,-500.0,9.996e-05,2]
[348407362,1736517043344,-500.0,9.996e-05,2]
[348407364,1736517043355,-500.0,9.996e-05,2]
[348407367,1736517043371,-500.0,9.996e-05,2]
[348407370,1736517043387,-500.0,9.996e-05,2]
[348407374,1736517043396,-500.0,9.996e-05,2]
[348407377,1736517043406,-500.0,9.996e-05,2]
[348407380,1736517043414,-500.0,9.996e-05,2]
[348407382,1736517043424,-500.0,9.996e-05,2]
[348407384,1736517043433,-500.0,9.996e-05,2]
[348407386,1736517043442,-500.0,9.996e-05,2]
[348407388,1736517043451,-500.0,9.996e-05,2]
[348407390,1736517043461,-500.0,9.996e-05,2]
[348407392,1736517043470,-500.0,9.996e-05,2]
[348407394,1736517043480,-500.0,9.996e-05,2]
[348407396,1736517043489,-500.0,9.996e-05,2]
[348407398,1736517043498,-1200.2,9.996e-05,2]
[348407400,1736517043507,-500.0,9.996e-05,2]
[348407402,1736517043516,-500.0,9.996e-05,2]
[348407404,1736517043525,-500.0,9.996e-05,2]
[348407406,1736517043534,-502.48217159,9.996e-05,2]
[348407408,1736517043544,-648.74,9.996e-05,2]
[348407410,1736517043553,-500.0,9.996e-05,2]
[348407412,1736517043562,-578.12,9.996e-05,2]
[348407414,1736517043572,-1647.97398634,9.996e-05,2]
[348407416,1736517043581,-500.0,9.996e-05,2]
[348407418,1736517043590,-500.0,9.996e-05,2]
[348407420,1736517043599,-858.92,9.996e-05,2]
[348407422,1736517043609,-548.63,9.996e-05,2]
[348407424,1736517043618,-500.0,9.996e-05,2]
[348407426,1736517043627,-502.03170886,9.996e-05,2]
[348407428,1736517043636,-500.0,9.996e-05,2]
[348407430,1736517043646,-500.0,9.996e-05,2]
[348407432,1736517043655,-500.0,9.996e-05,2]
[348407434,1736517043664,-500.0,9.996e-05,2]
[348407436,1736517043676,-500.0,9.996e-05,2]
[348407438,1736517043685,-500.0,9.996e-05,2]
[348407440,1736517043694,-500.0,9.996e-05,2]
[348407442,1736517043704,-500.0,9.996e-05,2]
[348407444,1736517043713,-500.0,9.996e-05,2]
[348407446,1736517043722,-708.96,9.996e-05,2]
[348407448,1736517043731,-500.0,9.996e-05,2]
[348407450,1736517043740,-220.58361734,9.996e-05,2]
[348407451,1736517043749,-500.0,9.996e-05,2]
[348407453,1736517043758,-1270.55,9.996e-05,2]
[348407455,1736517043767,-1104.68,9.996e-05,2]
[348407457,1736517043776,-500.0,9.996e-05,2]
[348407459,1736517043785,-500.0,9.996e-05,2]
[348407461,1736517043795,-500.0,9.996e-05,2]
[348407464,1736517043804,-204.76847216,9.996e-05,2]
[348407466,1736517043814,-500.0,9.996e-05,2]
[348407468,1736517043823,-500.0,9.996e-05,2]
[348407470,1736517043832,-668.19,9.996e-05,2]
[348407472,1736517043841,-7929.47,9.996e-05,2]
[348407473,1736517043850,-500.0,9.996e-05,2]
[348407475,1736517043859,-500.0,9.996e-05,2]
[348407478,1736517043886,-603.23,9.996e-05,2]
[348407481,1736517043895,-500.0,9.996e-05,2]
[348407485,1736517043904,-729.0,9.996e-05,2]
[348407488,1736517043913,-5010.34,9.996e-05,2]
[348407492,1736517043922,-506.97,9.996e-05,2]
[348407495,1736517043931,-1164.24,9.996e-05,2]
[348407498,1736517043940,-500.0,9.996e-05,2]
[348407500,1736517043949,-694.56,9.996e-05,2]
[348407502,1736517043958,-1623.3,9.996e-05,2]
[348407504,1736517043967,-1661.2,9.996e-05,2]
[348407506,1736517043976,-522.42,9.996e-05,2]
[348407508,1736517043985,-2233.62,9.996e-05,2]
[348407510,1736517043994,-500.0,9.996e-05,2]
[348407512,1736517044003,-500.0,9.997e-05,2]
[348407514,1736517044013,-739.13,9.997e-05,2]
[348407516,1736517044022,-528.74,9.997e-05,2]
[348407518,1736517044031,-657.2,9.997e-05,2]
[348407520,1736517044041,-500.0,9.997e-05,2]
[348407522,1736517044050,-803.0,9.997e-05,2]
[348407524,1736517044059,-500.0,9.997e-05,2]
[348407526,1736517044068,-526.59,9.997e-05,2]
[348407528,1736517044077,-641.03,9.997e-05,2]
[348407530,1736517044086,-500.0,9.997e-05,2]
[348407532,1736517044095,-716.64,9.997e-05,2]
[348407534,1736517044104,-500.0,9.997e-05,2]
[348407536,1736517044113,-500.0,9.997e-05,2]
[348407538,1736517044122,-500.0,9.997e-05,2]
[348407540,1736517044132,-892.51,9.997e-05,2]
[348407542,1736517044141,-1078.61,9.997e-05,2]
[348407544,1736517044150,-500.0,9.997e-05,2]
[348407546,1736517044159,-1000.0,9.997e-05,2]
[348407548,1736517044169,-606.17,9.997e-05,2]
[348407550,1736517044178,-605.99,9.997e-05,2]